fUST/lending_fUST_20250408
["ID","MTS","AMOUNT","RATE_DAILY","PERIOD"]
[357485499,1744083039420,-1052.2,0.00021316,2]
[357485500,1744083039431,-1696.5,0.00021316,2]
[357485501,1744083039441,-500.0,0.00021316,2]
[357485503,1744083039450,-500.0,0.00021316,2]
[357485504,1744083039460,-524.48,0.00021316,2]
[357485505,1744083039473,-500.0,0.00021316,2]
[357485506,1744083039484,-500.0,0.00021316,2]
[357485507,1744083039494,-500.0,0.00021316,2]
[357485508,1744083039504,-1205.17,0.00021316,2]
[357485509,1744083039514,-1527.76,0.00021316,2]
[357485510,1744083039524,-500.0,0.00021316,2]
[357485511,1744083039534,-500.0,0.00021316,2]
[357485512,1744083039544,-500.0,0.00021316,2]
[357485513,1744083039554,-1876.59,0.00021316,2]
[357485514,1744083039564,-500.0,0.00021316,2]
[357485515,1744083039574,-500.0,0.00021316,2]
[357485516,1744083039585,-500.0,0.00021316,2]
[357485517,1744083039595,-500.0,0.00021316,2]
[357485518,1744083039605,-2733.3,0.00021316,2]
[357485519,1744083039615,-503.57,0.00021316,2]
[357485520,1744083039625,-500.0,0.00021316,2]
[357485521,1744083039639,-500.0,0.00021316,2]
[357485522,1744083039650,-500.0,0.00021316,2]
[357485523,1744083039660,-500.0,0.00021316,2]
[357485524,1744083039672,-500.0,0.00021316,2]
[357485525,1744083039683,-500.0,0.00021316,2]
[357485526,1744083039693,-500.0,0.00021316,2]
[357485527,1744083039703,-500.0,0.00021316,2]
[357485528,1744083039713,-500.0,0.00021316,2]
[357485529,1744083039726,-500.0,0.00021316,2]
[357485530,1744083039736,-500.0,0.00021316,2]
[357485531,1744083039746,-1211.76,0.00021316,2]
[357485532,1744083039756,-500.0,0.00021316,2]
[357485533,1744083039766,-500.0,0.00021316,2]
[357485534,1744083039776,-500.0,0.00021316,2]
[357485535,1744083039786,-500.0,0.00021316,2]
[357485536,1744083039797,-1059.44,0.00021316,2]
[357485537,1744083039807,-500.0,0.00021316,2]
[357485538,1744083039817,-500.0,0.00021316,2]
[357485539,1744083039827,-1003.86,0.00021316,2]
[357485540,1744083039837,-1109.73,0.00021316,2]
[357485541,1744083039847,-500.0,0.00021316,2]
[357485542,1744083039858,-500.0,0.00021316,2]
[357485543,1744083039868,-3676.57,0.00021316,2]
[357485544,1744083039879,-500.0,0.00021316,2]
[357485545,1744083039888,-1685.97,0.00021316,2]
[357485546,1744083039898,-500.0,0.00021316,2]
[357485547,1744083039908,-500.0,0.00021316,2]
[357485548,1744083039922,-500.0,0.00021316,2]
[357485549,1744083039932,-2170.99,0.00021316,2]
[357485550,1744083039943,-500.0,0.00021316,2]
[357485551,1744083039952,-7839.19,0.00021316,2]
[357485552,1744083039963,-500.0,0.00021316,2]
[357485553,1744083039974,-500.0,0.00021316,2]
[357485554,1744083039984,-500.0,0.00021316,2]
[357485555,1744083039994,-1042.21,0.00021316,2]
[357485556,1744083040005,-1419.0,0.00021316,2]
[357485557,1744083040015,-500.0,0.00021316,2]
[357485558,1744083040026,-500.0,0.00021316,2]
[357485559,1744083040037,-500.0,0.00021316,2]
[357485560,1744083040047,-370000.0,0.00021317,2]
[357485561,1744083040058,-500.0,0.0002132,2]
[357485562,1744083040070,-944.88,0.0002132,2]
[357485563,1744083040080,-500.0,0.0002132,2]
[357485564,1744083040090,-1154.64,0.0002132,2]
[357485565,1744083040100,-656.97,0.0002132,2]
[357485566,1744083040111,-500.0,0.0002132,2]
[357485567,1744083040121,-4887.85,0.0002132,2]
[357485568,1744083040132,-500.0,0.0002132,2]
[357485569,1744083040142,-500.0,0.0002132,2]
[357485570,1744083040152,-1459.24,0.0002132,2]
[357485571,1744083040162,-1754.0,0.0002132,2]
[357485572,1744083040173,-1732.42,0.0002132,2]
[357485573,1744083040184,-1514.67,0.0002132,2]
[357485575,1744083040194,-1042.87,0.0002132,2]
[357485577,1744083040205,-500.0,0.0002132,2]
[357485579,1744083040215,-992.47,0.0002132,2]
[357485581,1744083040227,-2709.7,0.0002132,2]
[357485583,1744083040236,-500.0,0.0002132,2]
[357485586,1744083040247,-536.03,0.0002132,2]
[357485588,1744083040258,-665.17,0.0002132,2]
[357485590,1744083040268,-1546.39,0.0002132,2]
[357485592,1744083040278,-1947.78,0.0002132,2]
[357485594,1744083040289,-500.0,0.0002132,2]
[357485596,1744083040299,-500.0,0.0002132,2]
[357485598,1744083040309,-500.0,0.0002132,2]
[357485599,1744083040319,-500.0,0.0002132,2]
[357485601,1744083040329,-500.0,0.0002132,2]
[357485603,1744083040339,-500.0,0.00021321,2]
[357485605,1744083040350,-500.0,0.00021321,2]
[357485607,1744083040360,-500.0,0.00021321,2]
[357485608,1744083040370,-500.0,0.00021321,2]
[357485609,1744083040383,-500.0,0.00021321,2]
[357485610,1744083040393,-500.0,0.00021321,2]
[357485611,1744083040403,-623.99,0.00021321,2]
[357485612,1744083040414,-500.0,0.00021321,2]
[357485613,1744083040424,-500.0,0.00021321,2]
[357485614,1744083040433,-1324.29,0.00021321,2]
[357485615,1744083040443,-500.0,0.00021321,2]
[357485616,1744083040453,-500.0,0.00021321,2]
[357485617,1744083040463,-500.0,0.00021321,2]
[357485618,1744083040474,-500.0,0.00021321,2]
[357485619,1744083040483,-1015.28,0.00021321,2]
[357485620,1744083040494,-703.08,0.00021321,2]
[357485621,1744083040503,-1033.13,0.00021321,2]
[357485622,1744083040514,-1145.94,0.00021321,2]
[357485623,1744083040525,-500.0,0.00021321,2]
[357485624,1744083040539,-500.0,0.00021321,2]
[357485625,1744083040549,-647.74504502,0.00021321,2]
[357485626,1744083040559,-500.0,0.00021321,2]
[357485627,1744083040570,-500.0,0.00021321,2]
[357485628,1744083040580,-500.0,0.00021321,2]
[357485629,1744083040590,-1260.38,0.00021321,2]
[357485630,1744083040600,-1222.96,0.00021321,2]
[357485631,1744083040611,-500.0,0.00021321,2]
[357485632,1744083040621,-500.0,0.00021321,2]
[357485633,1744083040632,-500.0,0.00021321,2]
[357485634,1744083040643,-500.0,0.00021321,2]
[357485635,1744083040654,-500.0,0.00021321,2]
[357485636,1744083040664,-500.0,0.00021321,2]
[357485637,1744083040676,-500.0,0.00021321,2]
[357485638,1744083040687,-500.0,0.00021321,2]
[357485639,1744083040697,-500.0,0.00021321,2]
[357485640,1744083040708,-500.0,0.00021321,2]
[357485641,1744083040721,-500.0,0.00021321,2]
[357485642,1744083040731,-528.77,0.00021321,2]
[357485643,1744083040742,-500.0,0.00021321,2]
[357485644,1744083040752,-515.71217314,0.00021321,2]
[357485645,1744083040762,-1021.44,0.00021321,2]
[357485646,1744083040772,-500.0,0.00021321,2]
[357485647,1744083040782,-500.0,0.00021321,2]
[357485648,1744083040793,-2104.84,0.00021321,2]
[357485649,1744083040804,-647.69,0.00021321,2]
[357485650,1744083040814,-1159.28,0.00021321,2]
[357485651,1744083040825,-714.58,0.00021321,2]
[357485652,1744083040835,-500.0,0.00021321,2]
[357485653,1744083040845,-500.0,0.00021321,2]
[357485654,1744083040856,-500.0,0.00021321,2]
[357485655,1744083040866,-152.0,0.00021321,2]
[357485656,1744083040876,-156.587,0.00021359,2]
[357485657,1744083040887,-500.0,0.00021373,2]
[357485658,1744083040896,-500.66664329,0.00021373,2]
[357485659,1744083040907,-500.74984166,0.00021373,2]
[357485660,1744083040917,-500.0,0.00021373,2]
[357485661,1744083040927,-500.0,0.00021373,2]
[357485662,1744083040938,-500.0,0.00021373,2]
[357485663,1744083040949,-502.23508926,0.00021373,2]
[357485664,1744083040959,-500.0,0.00021373,2]
[357485665,1744083040970,-501.92719262,0.00021373,2]
[357485666,1744083040981,-500.0,0.00021373,2]
[357485667,1744083040991,-500.0,0.00021373,2]
[357485668,1744083041002,-502.8704905,0.00021373,2]
[357485669,1744083041012,-500.0,0.00021373,2]
[357485670,1744083041023,-500.0,0.00021373,2]
[357485671,1744083041034,-500.0,0.00021373,2]
[357485672,1744083041044,-501.85212421,0.00021373,2]
[357485673,1744083041055,-503.56205169,0.00021373,2]
[357485674,1744083041065,-500.0,0.00021373,2]
[357485675,1744083041076,-535.61244981,0.00021373,2]
[357485676,1744083041086,-500.0,0.00021373,2]
[357485677,1744083041096,-500.0,0.00021373,2]
[357485678,1744083041106,-500.0,0.00021373,2]
[357485679,1744083041116,-500.0,0.00021373,2]
[357485680,1744083041126,-162.380719,0.00021414,2]
[357485681,1744083041136,-168.3888056,0.00021469,2]
[357485682,1744083041147,-373.83517708,0.00021506,2]
[357485683,1744083041158,-174.61919141,0.00021524,2]
[357485684,1744083041168,-500.0,0.00021573,2]
[357485685,1744083041179,-500.0,0.00021573,2]
[357485686,1744083041190,-500.0,0.00021573,2]
[357485687,1744083041201,-500.0,0.00021573,2]
[357485688,1744083041367,-181.08010149,0.00021579,2]
[357485689,1744083041391,-500.0,0.0002159,2]
[357485690,1744083041401,-500.0,0.0002159,2]
[357485691,1744083041411,-500.0,0.0002159,2]
[357485692,1744083041421,-500.0,0.0002159,2]
[357485693,1744083041430,-500.0,0.0002159,2]
[357485694,1744083041439,-500.0,0.0002159,2]
[357485695,1744083041449,-505.13795712,0.0002159,2]
[357485696,1744083041459,-586.9,0.0002159,2]
[357485697,1744083041469,-500.0,0.0002159,2]
[357485698,1744083041478,-500.0,0.0002159,2]
[357485699,1744083041488,-500.0,0.0002159,2]
[357485700,1744083041498,-677.05,0.0002159,2]
[357485701,1744083041507,-533.60687066,0.0002159,2]
[357485702,1744083041517,-520.40182548,0.0002159,2]
[357485703,1744083041528,-500.0,0.0002159,2]
[357485704,1744083041538,-551.47,0.0002159,2]
[357485705,1744083041548,-500.0,0.0002159,2]
[357485706,1744083041557,-500.0,0.0002159,2]
[357485707,1744083041567,-500.0,0.0002159,2]
[357485708,1744083041577,-548.96601731,0.0002159,2]
[357485709,1744083041586,-500.0,0.0002159,2]
[357485710,1744083041595,-500.0,0.0002159,2]
[357485711,1744083041606,-653.92,0.0002159,2]
[357485712,1744083041615,-500.0,0.0002159,2]
[357485713,1744083041624,-500.0,0.0002159,2]
[357485714,1744083041634,-500.0,0.0002159,2]
[357485715,1744083041648,-500.0,0.0002159,2]
[357485716,1744083041658,-500.0,0.0002159,2]
[357485717,1744083041667,-730.84,0.0002159,2]
[357485718,1744083041678,-500.0,0.0002159,2]
[357485719,1744083041687,-500.0,0.0002159,2]
[357485720,1744083041697,-858.61,0.0002159,2]
[357485721,1744083041706,-500.0,0.0002159,2]
[357485722,1744083041716,-500.0,0.0002159,2]
[357485723,1744083041726,-500.0,0.0002159,2]
[357485724,1744083041735,-1066.41,0.0002159,2]
[357485725,1744083041745,-500.0,0.0002159,2]
[357485726,1744083041755,-500.0,0.0002159,2]
[357485727,1744083041764,-500.0,0.0002159,2]
[357485728,1744083041774,-500.0,0.0002159,2]
[357485729,1744083041783,-500.0,0.0002159,2]
[357485730,1744083041793,-500.0,0.0002159,2]
[357485731,1744083041803,-500.0,0.0002159,2]
[357485732,1744083041813,-506.71,0.0002159,2]
[357485733,1744083041822,-500.0,0.0002159,2]
[357485734,1744083041832,-500.0,0.0002159,2]
[357485735,1744083041842,-500.0,0.0002159,2]
[357485736,1744083041851,-214.42236196,0.0002159,2]
[357485737,1744083041861,-500.0,0.0002159,2]
[357485738,1744083041871,-500.0,0.0002159,2]
[357485739,1744083041881,-520.7662381,0.0002159,2]
[357485740,1744083041890,-1000.78,0.0002159,2]
[357485741,1744083041900,-500.0,0.0002159,2]
[357485742,1744083041910,-500.0,0.0002159,2]
[357485743,1744083041920,-500.0,0.0002159,2]
[357485744,1744083041930,-500.0,0.0002159,2]
[357485745,1744083041940,-500.0,0.0002159,2]
[357485746,1744083041951,-500.0,0.0002159,2]
[357485747,1744083041960,-500.0,0.0002159,2]
[357485748,1744083041970,-500.0,0.0002159,2]
[357485749,1744083041980,-500.0,0.0002159,2]
[357485750,1744083041989,-500.0,0.0002159,2]
[357485751,1744083041999,-1735.98,0.0002159,2]
[357485752,1744083042009,-500.0,0.0002159,2]
[357485753,1744083042018,-523.27,0.0002159,2]
[357485754,1744083042028,-500.0,0.0002159,2]
[357485755,1744083042038,-784.63,0.0002159,2]
[357485756,1744083042047,-2072.68,0.0002159,2]
[357485757,1744083042057,-500.0,0.0002159,2]
[357485758,1744083042066,-747.85,0.0002159,2]
[357485759,1744083042076,-1220.43,0.0002159,2]
[357485760,1744083042085,-500.0,0.0002159,2]
[357485761,1744083042095,-500.0,0.0002159,2]
[357485762,1744083042104,-500.0,0.0002159,2]
[357485763,1744083042114,-500.0,0.0002159,2]
[357485764,1744083042123,-1360.36,0.0002159,2]
[357485765,1744083042133,-500.0,0.0002159,2]
[357485766,1744083042145,-500.0,0.0002159,2]
[357485767,1744083042157,-1028.62,0.0002159,2]
[357485768,1744083042168,-500.0,0.0002159,2]
[357485769,1744083042178,-500.0,0.0002159,2]
[357485770,1744083042188,-1696.5,0.0002159,2]
[357485771,1744083042197,-500.0,0.0002159,2]
[357485772,1744083042207,-500.0,0.0002159,2]
[357485773,1744083042223,-1052.2,0.0002159,2]
[357485774,1744083042245,-524.48,0.0002159,2]
[357485775,1744083042255,-500.0,0.0002159,2]
[357485776,1744083042265,-500.0,0.0002159,2]
[357485777,1744083042275,-500.0,0.0002159,2]
[357485778,1744083042286,-1205.17,0.0002159,2]
[357485779,1744083042297,-1527.76,0.0002159,2]
[357485780,1744083042306,-500.0,0.0002159,2]
[357485781,1744083042317,-500.0,0.0002159,2]
[357485782,1744083042327,-500.0,0.0002159,2]
[357485783,1744083042337,-1876.59,0.0002159,2]
[357485784,1744083042347,-500.0,0.0002159,2]
[357485785,1744083042357,-500.0,0.0002159,2]
[357485786,1744083042366,-500.0,0.0002159,2]
[357485787,1744083042376,-500.0,0.0002159,2]
[357485788,1744083042385,-2733.3,0.0002159,2]
[357485790,1744083042395,-503.57,0.0002159,2]
[357485792,1744083042405,-500.0,0.0002159,2]
[357485793,1744083042415,-500.0,0.0002159,2]
[357485794,1744083042425,-500.0,0.0002159,2]
[357485796,1744083042435,-500.0,0.0002159,2]
[357485798,1744083042444,-500.0,0.0002159,2]
[357485800,1744083042453,-500.0,0.0002159,2]
[357485802,1744083042463,-500.0,0.0002159,2]
[357485803,1744083042473,-500.0,0.0002159,2]
[357485805,1744083042483,-500.0,0.0002159,2]
[357485806,1744083042492,-500.0,0.0002159,2]
[357485807,1744083042506,-500.0,0.0002159,2]
[357485808,1744083042516,-1211.76,0.0002159,2]
[357485809,1744083042526,-500.0,0.0002159,2]
[357485810,1744083042535,-500.0,0.0002159,2]
[357485811,1744083042545,-500.0,0.0002159,2]
[357485812,1744083042555,-500.0,0.0002159,2]
[357485813,1744083042564,-1059.44,0.0002159,2]
[357485814,1744083042574,-500.0,0.0002159,2]
[357485815,1744083042583,-500.0,0.0002159,2]
[357485816,1744083042593,-1003.86,0.0002159,2]
[357485817,1744083042603,-1109.73,0.0002159,2]
[357485818,1744083042612,-500.0,0.0002159,2]
[357485819,1744083042622,-500.0,0.0002159,2]
[357485820,1744083042631,-3676.57,0.0002159,2]
[357485821,1744083042643,-500.0,0.0002159,2]
[357485822,1744083042653,-1685.97,0.0002159,2]
[357485823,1744083042663,-500.0,0.0002159,2]
[357485824,1744083042673,-500.0,0.0002159,2]
[357485825,1744083042685,-500.0,0.0002159,2]
[357485826,1744083042695,-2170.99,0.0002159,2]
[357485827,1744083042705,-500.0,0.0002159,2]
[357485828,1744083042715,-7839.19,0.0002159,2]
[357485829,1744083042726,-500.0,0.0002159,2]
[357485830,1744083042736,-500.0,0.0002159,2]
[357485831,1744083042746,-500.0,0.0002159,2]
[357485832,1744083042755,-1042.21,0.0002159,2]
[357485833,1744083042765,-1419.0,0.0002159,2]
[357485834,1744083042775,-500.0,0.0002159,2]
[357485835,1744083042785,-500.0,0.0002159,2]
[357485836,1744083042794,-500.0,0.0002159,2]
[357485837,1744083042804,-944.88,0.00021594,2]
[357485838,1744083042814,-500.0,0.00021594,2]
[357485839,1744083042824,-1154.64,0.00021594,2]
[357485840,1744083042834,-656.97,0.00021594,2]
[357485841,1744083042843,-500.0,0.00021594,2]
[357485842,1744083042853,-4887.85,0.00021594,2]
[357485843,1744083042863,-500.0,0.00021594,2]
[357485844,1744083042873,-500.0,0.00021594,2]
[357485845,1744083042883,-1459.24,0.00021594,2]
[357485846,1744083042892,-1754.0,0.00021594,2]
[357485847,1744083042902,-1732.42,0.00021594,2]
[357485848,1744083042912,-1514.67,0.00021594,2]
[357485849,1744083042922,-1042.87,0.00021594,2]
[357485850,1744083042932,-500.0,0.00021594,2]
[357485851,1744083042941,-992.47,0.00021594,2]
[357485852,1744083042951,-2709.7,0.00021594,2]
[357485853,1744083042961,-500.0,0.00021594,2]
[357485854,1744083042970,-536.03,0.00021594,2]
[357485855,1744083042979,-665.17,0.00021594,2]
[357485856,1744083042989,-1546.39,0.00021594,2]
[357485857,1744083042999,-1947.78,0.00021594,2]
[357485858,1744083043008,-500.0,0.00021594,2]
[357485859,1744083043018,-500.0,0.00021594,2]
[357485860,1744083043028,-500.0,0.00021594,2]
[357485861,1744083043038,-500.0,0.00021594,2]
[357485862,1744083043049,-500.0,0.00021594,2]
[357485863,1744083043059,-599.08557868,0.00021595,2]
[357485864,1744083043069,-500.0,0.00021595,2]
[357485865,1744083043079,-500.0,0.00021595,2]
[357485866,1744083043088,-500.0,0.00021595,2]
[357485868,1744083043098,-500.0,0.00021595,2]
[357485870,1744083043107,-623.99,0.00021595,2]
[357485872,1744083043117,-500.0,0.00021595,2]
[357485874,1744083043126,-500.0,0.00021595,2]
[357485875,1744083043136,-1324.29,0.00021595,2]
[357485877,1744083043145,-500.0,0.00021595,2]
[357485879,1744083043154,-500.0,0.00021595,2]
[357485881,1744083043164,-500.0,0.00021595,2]
[357485883,1744083043173,-500.0,0.00021595,2]
[357485884,1744083043183,-1015.28,0.00021595,2]
[357485885,1744083043193,-703.08,0.00021595,2]
[357485886,1744083043202,-1033.13,0.00021595,2]
[357485887,1744083043212,-1145.94,0.00021595,2]
[357485888,1744083043221,-500.0,0.00021595,2]
[357485890,1744083043231,-500.0,0.00021595,2]
[357485892,1744083043241,-500.0,0.00021595,2]
[357485894,1744083043251,-500.0,0.00021595,2]
[357485895,1744083043261,-500.0,0.00021595,2]
[357485897,1744083043271,-1260.38,0.00021595,2]
[357485899,1744083043281,-1222.96,0.00021595,2]
[357485900,1744083043290,-500.0,0.00021595,2]
[357485901,1744083043300,-500.0,0.00021595,2]
[357485902,1744083043309,-500.0,0.00021595,2]
[357485903,1744083043319,-500.0,0.00021595,2]
[357485904,1744083043328,-500.0,0.00021595,2]
[357485905,1744083043338,-500.0,0.00021595,2]
[357485906,1744083043348,-500.0,0.00021595,2]
[357485907,1744083043357,-500.0,0.00021595,2]
[357485908,1744083043368,-500.0,0.00021595,2]
[357485909,1744083043377,-500.0,0.00021595,2]
[357485910,1744083043387,-528.77,0.00021595,2]
[357485911,1744083043397,-500.0,0.00021595,2]
[357485912,1744083043406,-1021.44,0.00021595,2]
[357485913,1744083043416,-500.0,0.00021595,2]
[357485914,1744083043427,-500.0,0.00021595,2]
[357485915,1744083043438,-2104.84,0.00021595,2]
[357485916,1744083043447,-647.69,0.00021595,2]
[357485917,1744083043457,-1159.28,0.00021595,2]
[357485919,1744083043467,-714.58,0.00021595,2]
[357485921,1744083043479,-500.0,0.00021595,2]
[357485923,1744083043488,-500.0,0.00021595,2]
[357485925,1744083043497,-500.0,0.00021595,2]
[357485927,1744083043507,-187.78006525,0.00021634,2]
[357485929,1744083043517,-288.17034537,0.00021689,2]
[357485931,1744083043526,-373.83517708,0.00021793,2]
[357485932,1744083043536,-192.0,0.000218,2]
[357485934,1744083043545,-500.0,0.00021864,2]
[357485936,1744083043555,-500.0,0.00021864,2]
[357485938,1744083043565,-500.0,0.00021864,2]
[357485940,1744083043575,-500.0,0.00021864,2]
[357485942,1744083043584,-500.0,0.00021864,2]
[357485944,1744083043594,-500.0,0.00021864,2]
[357485946,1744083043603,-586.9,0.00021864,2]
[357485948,1744083043612,-500.0,0.00021864,2]
[357485950,1744083043622,-500.0,0.00021864,2]
[357485951,1744083043631,-511.71412829,0.00021864,2]
[357485953,1744083043644,-677.05,0.00021864,2]
[357485955,1744083043654,-500.0,0.00021864,2]
[357485957,1744083043664,-500.0,0.00021864,2]
[357485959,1744083043675,-551.47,0.00021864,2]
[357485961,1744083043687,-500.0,0.00021864,2]
[357485963,1744083043696,-500.0,0.00021864,2]
[357485965,1744083043707,-500.0,0.00021864,2]
[357485966,1744083043717,-500.0,0.00021864,2]
[357485967,1744083043729,-653.92,0.00021864,2]
[357485968,1744083043739,-500.0,0.00021864,2]
[357485969,1744083043750,-500.0,0.00021864,2]
[357485970,1744083043761,-500.0,0.00021864,2]
[357485971,1744083043771,-500.0,0.00021864,2]
[357485972,1744083043781,-500.0,0.00021864,2]
[357485973,1744083043791,-730.84,0.00021864,2]
[357485974,1744083043801,-500.0,0.00021864,2]
[357485975,1744083043812,-500.0,0.00021864,2]
[357485976,1744083043822,-858.61,0.00021864,2]
[357485977,1744083043832,-500.0,0.00021864,2]
[357485978,1744083043842,-500.0,0.00021864,2]
[357485979,1744083043851,-500.0,0.00021864,2]
[357485980,1744083043861,-1066.41,0.00021864,2]
[357485981,1744083043871,-549.29015315,0.00021864,2]
[357485982,1744083043881,-500.0,0.00021864,2]
[357485983,1744083043891,-543.50973022,0.00021864,2]
[357485984,1744083043901,-500.0,0.00021864,2]
[357485985,1744083043910,-500.0,0.00021864,2]
[357485986,1744083043921,-500.0,0.00021864,2]
[357485987,1744083043931,-506.71,0.00021864,2]
[357485988,1744083043941,-500.0,0.00021864,2]
[357485989,1744083043950,-500.0,0.00021864,2]
[357485990,1744083043960,-500.0,0.00021864,2]
[357485991,1744083043970,-500.0,0.00021864,2]
[357485992,1744083043979,-500.0,0.00021864,2]
[357485993,1744083043990,-1000.78,0.00021864,2]
[357485994,1744083044000,-500.0,0.00021864,2]
[357485995,1744083044013,-500.0,0.00021864,2]
[357485996,1744083044023,-500.0,0.00021864,2]
[357485997,1744083044033,-500.0,0.00021864,2]
[357485998,1744083044043,-500.0,0.00021864,2]
[357485999,1744083044054,-500.0,0.00021864,2]
[357486000,1744083044064,-500.0,0.00021864,2]
[357486001,1744083044074,-500.0,0.00021864,2]
[357486002,1744083044084,-500.0,0.00021864,2]
[357486003,1744083044094,-500.0,0.00021864,2]
[357486004,1744083044104,-1735.98,0.00021864,2]
[357486005,1744083044113,-500.0,0.00021864,2]
[357486006,1744083044124,-523.27,0.00021864,2]
[357486007,1744083044133,-500.0,0.00021864,2]
[357486008,1744083044143,-784.63,0.00021864,2]
[357486009,1744083044153,-2072.68,0.00021864,2]
[357486010,1744083044163,-500.0,0.00021864,2]
[357486011,1744083044176,-747.85,0.00021864,2]
[357486012,1744083044185,-1220.43,0.00021864,2]
[357486013,1744083044195,-500.0,0.00021864,2]
[357486014,1744083044205,-500.0,0.00021864,2]
[357486015,1744083044214,-500.0,0.00021864,2]
[357486016,1744083044223,-500.0,0.00021864,2]
[357486017,1744083044233,-1360.36,0.00021864,2]
[357486018,1744083044242,-500.0,0.00021864,2]
[357486019,1744083044252,-500.0,0.00021864,2]
[357486020,1744083044262,-1028.62,0.00021864,2]
[357486021,1744083044275,-500.0,0.00021864,2]
[357486022,1744083044285,-500.0,0.00021864,2]
[357486023,1744083044294,-1696.5,0.00021864,2]
[357486024,1744083044303,-500.0,0.00021864,2]
[357486025,1744083044313,-500.0,0.00021864,2]
[357486026,1744083044323,-1052.2,0.00021864,2]
[357486027,1744083044332,-524.48,0.00021864,2]
[357486028,1744083044342,-500.0,0.00021864,2]
[357486029,1744083044351,-500.0,0.00021864,2]
[357486030,1744083044360,-500.0,0.00021864,2]
[357486031,1744083044370,-1205.17,0.00021864,2]
[357486032,1744083044380,-1527.76,0.00021864,2]
[357486033,1744083044390,-500.0,0.00021864,2]
[357486034,1744083044400,-500.0,0.00021864,2]
[357486035,1744083044409,-500.0,0.00021864,2]
[357486036,1744083044419,-1876.59,0.00021864,2]
[357486037,1744083044431,-500.0,0.00021864,2]
[357486038,1744083044441,-500.0,0.00021864,2]
[357486039,1744083044451,-500.0,0.00021864,2]
[357486040,1744083044461,-500.0,0.00021864,2]
[357486041,1744083044472,-2733.3,0.00021864,2]
[357486042,1744083044482,-503.57,0.00021864,2]
[357486043,1744083044492,-500.0,0.00021864,2]
[357486044,1744083044502,-500.0,0.00021864,2]
[357486045,1744083044512,-500.0,0.00021864,2]
[357486046,1744083044521,-500.0,0.00021864,2]
[357486047,1744083044531,-500.0,0.00021864,2]
[357486048,1744083044540,-500.0,0.00021864,2]
[357486049,1744083044550,-500.0,0.00021864,2]
[357486050,1744083044561,-515.66099596,0.00021864,2]
[357486051,1744083044570,-500.0,0.00021864,2]
[357486052,1744083044580,-500.0,0.00021864,2]
[357486053,1744083044590,-500.0,0.00021864,2]
[357486054,1744083044599,-1211.76,0.00021864,2]
[357486055,1744083044609,-500.0,0.00021864,2]
[357486056,1744083044618,-500.0,0.00021864,2]
[357486057,1744083044628,-500.0,0.00021864,2]
[357486058,1744083044641,-500.0,0.00021864,2]
[357486059,1744083044650,-1059.44,0.00021864,2]